[Event "2. Itzehoer Schach Open"]
[Site "Itzehoe, Germany"]
[Date "2023.05.01"]
[Round "5.7"]
[White "Nahnsen, Kenneth"]
[Black "Wusterack, Paul"]
[Result "1/2-1/2"]
[TimeControl "90 min / 40 Züge + 30 min + 30 Sek pro Zug"]
[WhiteElo "2021"]
[BlackElo "1647"]

1. d4 {[%clk 01:30:59]} {[%emt 00:00:01]} d5 {[%clk 00:55:02]} {[%emt
00:35:59]} 2. Nf3 {[%clk 01:30:53]} {[%emt 00:00:35]} Nf6 {[%clk 00:52:06]}
{[%emt 00:03:26]} 3. c4 {[%clk 01:31:17]} {[%emt 00:00:05]} dxc4 {[%clk
00:52:15]} {[%emt 00:00:22]} 4. e3 {[%clk 01:31:36]} {[%emt 00:00:10]} e6
{[%clk 00:52:01]} {[%emt 00:00:45]} 5. Bxc4 {[%clk 01:31:59]} {[%emt 00:00:07]}
c5 {[%clk 00:52:18]} {[%emt 00:00:13]} 6. O-O {[%clk 01:29:36]} {[%emt
00:02:53]} Nc6 {[%clk 00:51:59]} {[%emt 00:00:50]} 7. dxc5 {[%clk 01:27:09]}
{[%emt 00:02:56]} Qxd1 {[%clk 00:47:31]} {[%emt 00:04:59]} 8. Rxd1 {[%clk
01:27:37]} {[%emt 00:00:01]} Bxc5 {[%clk 00:47:51]} {[%emt 00:00:10]} 9. a3
{[%clk 01:28:03]} {[%emt 00:00:04]} Bd7 {[%clk 00:36:37]} {[%emt 00:11:44]} 10.
b4 {[%emt 00:00:08]} Be7 {[%clk 00:36:38]} {[%emt 00:00:27]} 11. Bb2 {[%clk
01:28:45]} {[%emt 00:00:12]} O-O {[%clk 00:33:03]} {[%emt 00:04:05]} 12. Nbd2
{[%clk 01:29:06]} {[%emt 00:00:09]} Rfd8 {[%clk 00:30:39]} {[%emt 00:02:54]} 13.
Nb3 {[%clk 01:24:28]} {[%emt 00:05:08]} Be8 {[%clk 00:27:43]} {[%emt 00:03:26]}
14. Nfd2 {[%clk 01:18:48]} {[%emt 00:06:10]} Rac8 {[%clk 00:24:11]} {[%emt
00:04:02]} 15. Kf1 {[%clk 01:17:18]} {[%emt 00:01:59]} Kf8 {[%clk 00:15:13]}
{[%emt 00:09:29]} 16. Rac1 {[%clk 01:15:24]} {[%emt 00:02:23]} Ng4 {[%clk
00:13:40]} {[%emt 00:02:04]} 17. Be2 {[%clk 01:13:03]} {[%emt 00:02:50]} Bf6
{[%clk 00:12:29]} {[%emt 00:01:42]} 18. Bxf6 {[%clk 01:08:33]} {[%emt
00:05:00]} Nxf6 {[%clk 00:12:58]} {[%emt 00:00:01]} 19. Bf3 {[%clk 01:07:37]}
{[%emt 00:01:26]} b6 {[%clk 00:09:29]} {[%emt 00:04:00]} 20. Be2 {[%clk
01:03:06]} {[%emt 00:04:59]} Nb8 {[%clk 00:09:06]} {[%emt 00:00:54]} 21. b5
{[%clk 01:01:14]} {[%emt 00:02:23]} Nd5 {[%clk 00:08:03]} {[%emt 00:01:33]} 22.
Ne4 {[%clk 01:00:56]} {[%emt 00:00:46]} Ke7 {[%clk 00:08:15]} {[%emt 00:00:18]}
23. a4 {[%clk 00:59:12]} {[%emt 00:02:14]} f5 {[%clk 00:07:34]} {[%emt
00:01:12]} 24. Ng5 {[%clk 00:59:06]} {[%emt 00:00:36]} h6 {[%clk 00:07:55]}
{[%emt 00:00:09]} 25. Nf3 {[%clk 00:59:30]} {[%emt 00:00:06]} Nc3 {[%clk
00:06:43]} {[%emt 00:01:42]} 26. Rxd8 {[%emt 00:00:29]} Kxd8 {[%clk 00:07:04]}
{[%emt 00:00:07]} 27. Nbd4 {[%clk 00:56:36]} {[%emt 00:03:26]} Bd7 {[%clk
00:07:14]} {[%emt 00:00:20]} 28. Ra1 {[%clk 00:55:45]} {[%emt 00:01:19]} Nxe2
{[%clk 00:06:57]} {[%emt 00:00:50]} 29. Kxe2 {[%clk 00:56:12]} {[%emt
00:00:03]} a6 {[%clk 00:06:26]} {[%emt 00:01:02]} 30. Rd1 {[%clk 00:43:36]}
{[%emt 00:13:04]} Ke7 {[%clk 00:06:37]} {[%emt 00:00:20]} 31. Ne5 {[%clk
00:44:00]} {[%emt 00:00:06]} Be8 {[%clk 00:06:42]} {[%emt 00:00:26]} 32. Rb1
{[%clk 00:39:51]} {[%emt 00:04:38]} axb5 {[%clk 00:05:05]} {[%emt 00:02:06]} 33.
axb5 {[%clk 00:39:42]} {[%emt 00:00:40]} g5 {[%clk 00:04:07]} {[%emt 00:01:28]}
34. Ra1 {[%clk 00:39:44]} {[%emt 00:00:28]} Rc5 {[%clk 00:03:40]} {[%emt
00:00:58]} 35. Ra7+ {[%clk 00:39:35]} {[%emt 00:00:38]} Kd6 {[%clk 00:01:27]}
{[%emt 00:02:43]} 36. Rb7 {[%clk 00:31:09]} {[%emt 00:08:56]} Bxb5+ {[%clk
00:00:52]} {[%emt 00:01:06]} 37. Kd2 {[%clk 00:30:21]} {[%emt 00:01:17]} Kxe5
{[%clk 00:01:10]} {[%emt 00:00:12]} 38. Rxb8 {[%clk 00:29:55]} {[%emt
00:00:56]} Bc4 {[%clk 00:01:13]} {[%emt 00:00:27]} 39. Rxb6 {[%clk 00:30:17]}
{[%emt 00:00:08]} Kf6 {[%clk 00:01:09]} {[%emt 00:00:34]} 40. Rd6 {[%clk
00:28:36]} {[%emt 00:02:10]} 1/2-1/2

[Event "2. Itzehoer Schach Open"]
[Site "Itzehoe, Germany"]
[Date "2023.05.01"]
[Round "5.13"]
[White "Lichtmannecker, Daniel"]
[Black "Spieker, Hans-Joachim"]
[Result "1-0"]
[TimeControl "90 min / 40 Züge + 30 min + 30 Sek pro Zug"]
[WhiteElo "2162"]
[BlackElo "1747"]

1. e4 {[%clk 00:54:18]} {[%emt 00:36:41]} c5 {[%clk 01:30:59]} {[%emt
00:00:03]} 2. Nf3 {[%clk 00:54:39]} {[%emt 00:00:09]} Nc6 {[%clk 01:31:28]} 3.
Bb5 {[%clk 00:54:59]} {[%emt 00:00:10]} g6 {[%clk 01:31:52]} {[%emt 00:00:06]}
4. O-O {[%clk 00:55:22]} {[%emt 00:00:06]} Bg7 {[%clk 01:31:30]} {[%emt
00:00:52]} 5. c3 {[%clk 00:55:44]} {[%emt 00:00:10]} a6 {[%clk 01:30:27]}
{[%emt 00:01:33]} 6. Bxc6 {[%clk 00:55:06]} {[%emt 00:01:07]} dxc6 {[%clk
01:30:45]} {[%emt 00:00:11]} 7. d3 {[%clk 00:54:58]} {[%emt 00:00:39]} Nf6
{[%clk 01:29:58]} {[%emt 00:01:16]} 8. Qc2 {[%clk 00:53:52]} {[%emt 00:01:36]}
Bg4 {[%clk 01:28:04]} {[%emt 00:02:24]} 9. Nbd2 {[%clk 00:53:43]} {[%emt
00:00:41]} O-O {[%clk 01:22:59]} {[%emt 00:05:33]} 10. h3 {[%clk 00:51:07]}
{[%emt 00:03:06]} Bxf3 {[%clk 01:22:17]} {[%emt 00:01:12]} 11. Nxf3 {[%clk
00:51:31]} {[%emt 00:00:07]} Nd7 {[%clk 01:19:41]} {[%emt 00:03:06]} 12. a4
{[%clk 00:48:51]} {[%emt 00:03:10]} Ne5 {[%clk 01:17:43]} {[%emt 00:02:28]} 13.
Nxe5 {[%clk 00:49:03]} {[%emt 00:00:18]} Bxe5 {[%clk 01:18:10]} {[%emt
00:00:02]} 14. Be3 {[%clk 00:46:33]} {[%emt 00:03:01]} b6 {[%clk 01:17:28]}
{[%emt 00:01:11]} 15. f4 {[%clk 00:45:08]} {[%emt 00:01:56]} Bg7 {[%clk
01:17:45]} {[%emt 00:00:13]} 16. a5 {[%clk 00:40:52]} {[%emt 00:04:46]} c4
{[%clk 01:10:50]} {[%emt 00:07:25]} 17. dxc4 {[%clk 00:40:03]} {[%emt
00:01:18]} bxa5 {[%clk 01:11:12]} {[%emt 00:00:08]} 18. Rfd1 {[%clk 00:36:27]}
{[%emt 00:04:07]} Qc7 {[%clk 01:11:24]} {[%emt 00:00:18]} 19. Qa4 {[%clk
00:22:48]} {[%emt 00:14:09]} Qb7 {[%clk 01:08:17]} {[%emt 00:03:37]} 20. Rd2
{[%clk 00:19:41]} {[%emt 00:03:37]} Rfd8 {[%clk 01:07:39]} {[%emt 00:01:07]} 21.
Rad1 {[%clk 00:14:29]} {[%emt 00:05:42]} Rxd2 {[%clk 01:07:56]} {[%emt
00:00:13]} 22. Rxd2 {[%clk 00:14:51]} {[%emt 00:00:10]} c5 {[%clk 01:03:15]}
{[%emt 00:05:10]} 23. Qc2 {[%clk 00:14:09]} {[%emt 00:01:12]} Qc6 {[%clk
01:01:14]} {[%emt 00:02:30]} 24. Rd5 {[%clk 00:13:47]} {[%emt 00:00:53]} Rb8
{[%clk 00:58:13]} {[%emt 00:03:32]} 25. Rxc5 {[%clk 00:11:48]} {[%emt
00:02:28]} Qb7 {[%clk 00:56:36]} {[%emt 00:02:07]} 26. Rxa5 {[%clk 00:07:17]}
{[%emt 00:05:01]} Qxb2 {[%clk 00:54:43]} {[%emt 00:02:22]} 27. Qxb2 {[%clk
00:07:27]} {[%emt 00:00:21]} Rxb2 {[%clk 00:55:41]} {[%emt 00:00:02]} 28. Rxa6
{[%clk 00:07:11]} {[%emt 00:01:16]} Bxc3 {[%clk 00:55:57]} {[%emt 00:00:13]} 29.
Ra8+ {[%clk 00:03:59]} {[%emt 00:03:43]} Kg7 {[%clk 00:56:24]} {[%emt
00:00:03]} 30. c5 {[%clk 00:03:55]} {[%emt 00:00:34]} Rc2 {[%clk 00:55:56]}
{[%emt 00:00:57]} 31. c6 {[%clk 00:02:52]} {[%emt 00:02:02]} 1-0

[Event "2. Itzehoer Schach Open"]
[Site "Itzehoe, Germany"]
[Date "2023.05.01"]
[Round "5.26"]
[White "Tobis, Julius"]
[Black "Schiller, Thomas"]
[Result "0-1"]
[TimeControl "90 min / 40 Züge + 30 min + 30 Sek pro Zug"]
[WhiteElo "1334"]
[BlackElo "1678"]

1. e4 {[%clk 01:30:52]} {[%emt 00:00:06]} e5 {[%clk 01:30:56]} {[%emt
00:00:04]} 2. Nf3 {[%clk 01:31:17]} {[%emt 00:00:06]} Nc6 {[%clk 01:31:23]}
{[%emt 00:00:04]} 3. Bb5 {[%clk 01:31:41]} {[%emt 00:00:05]} f5 {[%clk
01:31:49]} {[%emt 00:00:04]} 4. d4 {[%clk 01:30:58]} {[%emt 00:01:13]} fxe4
{[%clk 01:30:37]} {[%emt 00:01:42]} 5. Bxc6 {[%clk 01:30:22]} {[%emt 00:01:06]}
dxc6 {[%clk 01:28:38]} {[%emt 00:02:29]} 6. Nxe5 {[%clk 01:30:22]} {[%emt
00:00:30]} Nf6 {[%clk 01:27:48]} {[%emt 00:01:20]} 7. Bg5 {[%clk 01:30:13]}
{[%emt 00:00:39]} Bd6 {[%clk 01:27:50]} {[%emt 00:00:29]} 8. Nc3 {[%clk
01:29:24]} {[%emt 00:01:19]} Bf5 {[%clk 01:27:53]} {[%emt 00:00:27]} 9. h4
{[%clk 01:28:33]} {[%emt 00:01:21]} h6 {[%clk 01:14:04]} {[%emt 00:14:19]} 10.
Bxf6 {[%clk 01:25:38]} {[%emt 00:03:24]} Qxf6 {[%clk 01:13:00]} {[%emt
00:01:34]} 11. f4 {[%clk 01:04:32]} {[%emt 00:21:36]} exf3 {[%clk 01:09:20]}
{[%emt 00:04:10]} 12. Nxf3 {[%clk 01:00:53]} {[%emt 00:04:08]} Bg3+ {[%clk
01:08:32]} {[%emt 00:01:19]} 13. Kf1 {[%clk 01:00:38]} {[%emt 00:00:45]} O-O
{[%clk 01:07:41]} {[%emt 00:01:21]} 14. Kg1 {[%clk 00:59:20]} {[%emt 00:01:48]}
Rae8 {[%clk 01:04:54]} {[%emt 00:03:17]} 15. Ne2 {[%clk 00:54:19]} {[%emt
00:05:31]} Bd6 {[%clk 01:02:03]} {[%emt 00:03:21]} 16. Kf1 {[%clk 00:51:29]}
{[%emt 00:03:20]} Bg4 {[%clk 00:56:18]} {[%emt 00:06:14]} 17. Neg1 {[%clk
00:50:23]} {[%emt 00:01:36]} Re3 {[%clk 00:53:14]} {[%emt 00:03:34]} 18. Kf2
{[%clk 00:44:02]} {[%emt 00:06:52]} Rfe8 {[%clk 00:49:44]} {[%emt 00:04:00]} 19.
c3 {[%clk 00:43:10]} {[%emt 00:01:23]} Qf4 {[%clk 00:49:02]} {[%emt 00:01:11]}
20. Qd2 {[%clk 00:39:59]} {[%emt 00:03:41]} Bxf3 {[%clk 00:44:25]} {[%emt
00:05:07]} 21. gxf3 {[%clk 00:39:19]} {[%emt 00:01:09]} Qg3+ {[%clk 00:39:32]}
{[%emt 00:05:24]} 22. Kf1 {[%clk 00:38:38]} {[%emt 00:01:11]} Rxf3+ {[%clk
00:36:28]} {[%emt 00:03:34]} 23. Nxf3 {[%clk 00:38:42]} {[%emt 00:00:26]} Qxf3+
{[%clk 00:36:57]} {[%emt 00:00:01]} 24. Kg1 {[%clk 00:38:41]} {[%emt 00:00:31]}
Re2 {[%clk 00:36:17]} {[%emt 00:01:10]} 0-1

[Event "2. Itzehoer Schach Open"]
[Site "Itzehoe, Germany"]
[Date "2023.05.01"]
[Round "5.1"]
[White "Helmer, Jan"]
[Black "Carlstedt, Jonathan"]
[Result "1/2-1/2"]
[TimeControl "90 min / 40 Züge + 30 min + 30 Sek pro Zug"]
[WhiteElo "2091"]
[BlackElo "2452"]

1. Nf3 {[%clk 01:30:45]} {[%emt 00:00:13]} c5 {[%clk 01:27:59]} {[%emt
00:03:02]} 2. b3 {[%clk 01:30:58]} {[%emt 00:00:17]} Nf6 {[%clk 01:25:59]}
{[%emt 00:02:30]} 3. Bb2 {[%clk 01:31:24]} {[%emt 00:00:05]} e6 {[%clk
01:26:24]} {[%emt 00:00:05]} 4. e3 {[%clk 01:31:41]} {[%emt 00:00:13]} Nc6
{[%clk 01:26:25]} {[%emt 00:00:29]} 5. d4 {[%clk 01:27:58]} {[%emt 00:04:14]}
cxd4 {[%clk 01:25:04]} {[%emt 00:01:51]} 6. exd4 {[%clk 01:28:00]} {[%emt
00:00:28]} Be7 {[%clk 01:25:07]} {[%emt 00:00:26]} 7. Bd3 {[%clk 01:28:11]}
{[%emt 00:00:20]} b6 {[%clk 01:24:34]} {[%emt 00:01:04]} 8. O-O {[%clk
01:28:31]} {[%emt 00:00:10]} Bb7 {[%clk 01:24:58]} {[%emt 00:00:06]} 9. a3
{[%clk 01:28:27]} {[%emt 00:00:35]} Qc7 {[%clk 01:23:25]} {[%emt 00:02:01]} 10.
Nbd2 {[%clk 01:28:43]} {[%emt 00:00:15]} h5 {[%clk 01:17:45]} {[%emt 00:06:11]}
11. c4 {[%clk 01:28:19]} {[%emt 00:00:54]} d5 {[%clk 01:16:57]} {[%emt
00:01:17]} 12. Rc1 {[%clk 01:27:37]} {[%emt 00:01:12]} Qd6 {[%clk 01:13:33]}
{[%emt 00:03:53]} 13. c5 {[%clk 01:22:31]} {[%emt 00:05:38]} Qc7 {[%clk
01:07:21]} {[%emt 00:06:41]} 14. b4 {[%clk 01:21:13]} {[%emt 00:01:48]} a6
{[%clk 01:07:25]} {[%emt 00:00:26]} 15. cxb6 {[%clk 01:17:13]} {[%emt
00:04:31]} Qxb6 {[%clk 01:07:48]} {[%emt 00:00:06]} 16. Qe2 {[%clk 01:17:07]}
{[%emt 00:00:35]} h4 {[%clk 01:06:18]} {[%emt 00:02:00]} 17. Nb3 {[%clk
01:14:53]} {[%emt 00:02:45]} Nh5 {[%clk 01:03:39]} {[%emt 00:03:09]} 18. Qe3
{[%clk 01:14:17]} {[%emt 00:01:06]} Bd6 {[%clk 01:02:43]} {[%emt 00:01:25]} 19.
g3 {[%clk 01:14:45]} {[%emt 00:00:03]} Ne7 {[%clk 00:51:59]} {[%emt 00:11:14]}
20. Ne5 {[%clk 01:10:36]} {[%emt 00:04:39]} hxg3 {[%clk 00:41:38]} {[%emt
00:10:51]} 21. hxg3 {[%clk 01:07:30]} {[%emt 00:03:37]} Nf6 {[%clk 00:42:01]}
{[%emt 00:00:06]} 22. Nc5 {[%clk 01:02:05]} {[%emt 00:05:55]} Bxc5 {[%clk
00:40:58]} {[%emt 00:01:33]} 23. bxc5 {[%clk 01:00:21]} {[%emt 00:02:14]} Qc7
{[%clk 00:39:45]} {[%emt 00:01:43]} 24. Qg5 {[%clk 00:33:35]} {[%emt 00:27:16]}
1/2-1/2

[Event "2. Itzehoer Schach Open"]
[Site "Itzehoe, Germany"]
[Date "2023.05.01"]
[Round "5.12"]
[White "Oortmann, Alexis"]
[Black "Roebers, Jan"]
[Result "1/2-1/2"]
[TimeControl "90 min / 40 Züge + 30 min + 30 Sek pro Zug"]
[WhiteElo "1095"]
[BlackElo "2083"]

1. Nf3 {[%clk 01:29:47]} {[%emt 00:01:13]} g6 {[%clk 01:29:48]} {[%emt
00:01:12]} 2. d4 {[%clk 01:29:45]} {[%emt 00:00:32]} Bg7 {[%clk 01:30:10]}
{[%emt 00:00:07]} 3. c4 {[%clk 01:30:08]} {[%emt 00:00:08]} Nf6 {[%clk
01:30:25]} {[%emt 00:00:14]} 4. g3 {[%clk 01:30:31]} {[%emt 00:00:06]} O-O
{[%clk 01:30:10]} {[%emt 00:00:46]} 5. Bg2 {[%clk 01:30:57]} {[%emt 00:00:03]}
d6 {[%clk 01:30:33]} {[%emt 00:00:08]} 6. O-O {[%clk 01:31:21]} {[%emt
00:00:06]} Nc6 {[%clk 01:30:22]} {[%emt 00:00:41]} 7. Nc3 {[%clk 01:31:37]}
{[%emt 00:00:15]} a6 {[%clk 01:30:38]} {[%emt 00:00:13]} 8. a4 {[%clk
01:29:48]} {[%emt 00:02:19]} a5 {[%clk 01:28:13]} {[%emt 00:02:56]} 9. h3
{[%clk 01:29:15]} {[%emt 00:01:03]} h6 {[%clk 01:25:50]} {[%emt 00:02:53]} 10.
e4 {[%clk 01:27:52]} {[%emt 00:01:52]} Nd7 {[%clk 01:21:17]} {[%emt 00:05:03]}
11. d5 {[%clk 01:23:00]} {[%emt 00:05:23]} Nb4 {[%clk 01:20:57]} {[%emt
00:00:50]} 12. Be3 {[%clk 01:22:52]} {[%emt 00:00:38]} Kh7 {[%clk 01:14:19]}
{[%emt 00:07:08]} 13. Bd4 {[%clk 01:19:58]} {[%emt 00:03:24]} Ne5 {[%clk
01:07:10]} {[%emt 00:07:38]} 14. Nxe5 {[%clk 01:17:37]} {[%emt 00:02:51]} dxe5
{[%clk 01:05:57]} {[%emt 00:01:44]} 15. Be3 {[%clk 01:13:43]} {[%emt 00:04:23]}
e6 {[%clk 00:57:39]} {[%emt 00:08:48]} 16. Qd2 {[%clk 01:05:51]} {[%emt
00:08:23]} f5 {[%clk 00:50:32]} {[%emt 00:07:36]} 17. dxe6 {[%clk 01:02:25]}
{[%emt 00:03:56]} Qxd2 {[%clk 00:47:29]} {[%emt 00:03:34]} 18. Bxd2 {[%clk
01:02:47]} {[%emt 00:00:07]} c6 {[%clk 00:47:36]} {[%emt 00:00:23]} 19. e7
{[%clk 01:01:01]} {[%emt 00:02:17]} Re8 {[%clk 00:46:33]} {[%emt 00:01:32]} 20.
Na2 {[%clk 00:57:20]} {[%emt 00:04:11]} Nc2 {[%clk 00:44:44]} {[%emt 00:02:19]}
21. Rab1 {[%clk 00:57:03]} {[%emt 00:00:47]} Rxe7 {[%clk 00:44:12]} {[%emt
00:01:02]} 22. Rfd1 {[%clk 00:48:10]} {[%emt 00:09:12]} Be6 {[%clk 00:40:29]}
{[%emt 00:04:24]} 23. b3 {[%clk 00:46:30]} {[%emt 00:02:11]} Rd7 {[%clk
00:37:03]} {[%emt 00:03:55]} 24. Bc3 {[%clk 00:43:20]} {[%emt 00:03:40]} Rxd1+
{[%clk 00:37:24]} {[%emt 00:00:09]} 25. Rxd1 {[%clk 00:43:28]} {[%emt
00:00:22]} Nd4 {[%clk 00:37:47]} {[%emt 00:00:07]} 26. Nc1 {[%clk 00:42:44]}
{[%emt 00:01:15]} fxe4 {[%clk 00:22:44]} {[%emt 00:15:32]} 27. g4 {[%clk
00:38:27]} {[%emt 00:04:47]} Rd8 {[%clk 00:20:23]} {[%emt 00:02:51]} 28. Kf1
{[%clk 00:37:33]} {[%emt 00:01:24]} b6 {[%clk 00:19:33]} {[%emt 00:01:21]} 29.
Bxe4 {[%clk 00:37:26]} {[%emt 00:00:36]} Bf6 {[%clk 00:19:42]} {[%emt
00:00:21]} 30. Bxd4 {[%clk 00:37:00]} {[%emt 00:00:57]} exd4 {[%clk 00:20:04]}
{[%emt 00:00:08]} 31. Bxc6 {[%clk 00:36:59]} {[%emt 00:00:30]} h5 {[%clk
00:18:28]} {[%emt 00:02:06]} 32. f3 {[%clk 00:36:27]} {[%emt 00:01:02]} 1/2-1/2

[Event "2. Itzehoer Schach Open"]
[Site "Itzehoe, Germany"]
[Date "2023.05.01"]
[Round "5.14"]
[White "Retzlaff, Wolfgang"]
[Black "Kitschke, Heiko"]
[Result "0-1"]
[TimeControl "90 min / 40 Züge + 30 min + 30 Sek pro Zug"]
[WhiteElo "1704"]
[BlackElo "2027"]

1. Nf3 {[%clk 01:30:58]} {[%emt 00:00:01]} d5 {[%clk 01:30:49]} {[%emt
00:00:12]} 2. d4 {[%clk 01:31:11]} {[%emt 00:00:17]} Nf6 {[%clk 01:30:53]}
{[%emt 00:00:25]} 3. e3 {[%clk 01:30:49]} {[%emt 00:00:52]} e6 {[%clk
01:30:23]} {[%emt 00:01:00]} 4. b3 {[%clk 01:30:55]} {[%emt 00:00:24]} Bd6
{[%clk 01:23:52]} {[%emt 00:06:59]} 5. Bd3 {[%clk 01:30:06]} {[%emt 00:01:21]}
c5 {[%clk 01:21:57]} {[%emt 00:02:25]} 6. O-O {[%clk 01:29:41]} {[%emt
00:00:54]} Nc6 {[%clk 01:21:53]} {[%emt 00:00:34]} 7. Bb2 {[%clk 01:26:17]}
{[%emt 00:03:55]} cxd4 {[%clk 01:17:57]} {[%emt 00:04:26]} 8. exd4 {[%clk
01:25:45]} {[%emt 00:01:02]} Qc7 {[%clk 01:17:42]} {[%emt 00:00:44]} 9. Re1
{[%clk 01:22:46]} {[%emt 00:03:29]} O-O {[%clk 01:17:31]} {[%emt 00:00:41]} 10.
Nbd2 {[%clk 01:18:59]} {[%emt 00:04:18]} Nb4 {[%clk 01:14:34]} {[%emt
00:03:27]} 11. Nf1 {[%clk 01:15:29]} {[%emt 00:04:00]} b6 {[%clk 01:12:34]}
{[%emt 00:02:30]} 12. Ba3 {[%clk 01:09:19]} {[%emt 00:06:41]} a5 {[%clk
01:10:14]} {[%emt 00:02:48]} 13. c4 {[%clk 01:00:24]} {[%emt 00:09:26]} Nxd3
{[%clk 00:59:47]} {[%emt 00:10:57]} 14. Qxd3 {[%clk 01:00:32]} {[%emt
00:00:22]} Bxa3 {[%clk 01:00:13]} {[%emt 00:00:04]} 0-1

[Event "2. Itzehoer Schach Open"]
[Site "Itzehoe, Germany"]
[Date "2023.05.01"]
[Round "5.29"]
[White "Brandt, Volker"]
[Black "Pitic, Alen"]
[Result "1-0"]
[TimeControl "90 min / 40 Züge + 30 min + 30 Sek pro Zug"]
[WhiteElo "1469"]
[BlackElo "1276"]

1. d4 {[%clk 01:30:57]} {[%emt 00:00:02]} Nf6 {[%clk 01:30:53]} {[%emt
00:00:07]} 2. f3 {[%clk 01:31:22]} {[%emt 00:00:05]} d5 {[%clk 01:31:08]}
{[%emt 00:00:16]} 3. e4 {[%clk 01:31:46]} {[%emt 00:00:05]} dxe4 {[%clk
01:31:00]} {[%emt 00:00:38]} 4. Nc3 {[%clk 01:32:09]} {[%emt 00:00:07]} exf3
{[%clk 01:30:41]} {[%emt 00:00:49]} 5. Qxf3 {[%clk 01:32:32]} {[%emt 00:00:06]}
Qxd4 {[%clk 01:30:10]} {[%emt 00:01:02]} 6. Be3 {[%clk 01:32:54]} {[%emt
00:00:08]} Qg4 {[%clk 01:29:34]} {[%emt 00:01:05]} 7. Qf2 {[%clk 01:32:39]}
{[%emt 00:00:45]} b6 {[%clk 01:28:32]} {[%emt 00:01:33]} 8. Be2 {[%clk
01:31:20]} {[%emt 00:01:48]} Qe6 {[%clk 01:27:26]} {[%emt 00:01:37]} 9. h3
{[%clk 01:30:21]} {[%emt 00:01:29]} Bb7 {[%clk 01:26:48]} {[%emt 00:01:08]} 10.
Nb5 {[%clk 01:29:05]} {[%emt 00:01:46]} Qc8 {[%clk 01:22:42]} {[%emt 00:04:36]}
11. O-O-O {[%clk 01:27:59]} {[%emt 00:01:36]} Ne4 {[%clk 01:19:15]} {[%emt
00:03:57]} 12. Qf4 {[%clk 01:27:38]} {[%emt 00:00:50]} Nd6 {[%clk 01:19:26]}
{[%emt 00:00:20]} 13. Nf3 {[%clk 01:25:45]} {[%emt 00:02:22]} Nc6 {[%clk
01:16:11]} {[%emt 00:03:46]} 14. Ng5 {[%clk 01:24:01]} {[%emt 00:02:13]} f6
{[%clk 01:15:14]} {[%emt 00:01:27]} 15. Nxh7 {[%clk 00:45:04]} {[%emt
00:39:28]} Rxh7 {[%clk 01:08:49]} {[%emt 00:06:55]} 16. Bd3 {[%clk 00:45:26]}
{[%emt 00:00:08]} Rh6 {[%clk 01:04:31]} {[%emt 00:04:47]} 17. Qg3 {[%clk
00:42:04]} {[%emt 00:03:52]} g5 {[%clk 01:03:27]} {[%emt 00:01:35]} 18. h4
{[%clk 00:41:08]} {[%emt 00:01:26]} Nxb5 {[%clk 01:02:14]} {[%emt 00:01:43]} 19.
hxg5 {[%clk 00:40:18]} {[%emt 00:01:20]} fxg5 {[%clk 00:53:43]} {[%emt
00:09:01]} 20. Qxg5 {[%clk 00:39:26]} {[%emt 00:01:22]} Rd6 {[%clk 00:53:43]}
{[%emt 00:00:29]} 21. Qg6+ {[%clk 00:36:26]} {[%emt 00:03:31]} Kd8 {[%clk
00:53:40]} {[%emt 00:00:33]} 22. Qg8 {[%clk 00:36:16]} {[%emt 00:00:40]} Rf6
{[%clk 00:52:02]} {[%emt 00:02:08]} 1-0